[Event "Olomouc Chess Summer IM-B 2024"]
[Site "Olomouc"]
[Date "2024.08.17"]
[Round "9.12"]
[White "Leitgeb, Julian"]
[Black "Plischki, Sebastian"]
[Result "1-0"]
[ECO "B54"]
[WhiteElo "2313"]
[BlackElo "2325"]
[Annotator "RC"]
[PlyCount "75"]
[EventDate "2024.08.10"]
[EventType "tourn"]
[EventCountry "CZE"]
[SourceTitle "playchess.com"]
[Source "ChessBase"]
[SourceQuality "1"]
[TimeControl "40/5400+30:1800+30"]

1. e4 {[%emt 0:00:03]} c5 {[%emt 0:00:04]} 2. Nf3 {[%emt 0:00:11]} e6 {[%emt 0:00:06]} 3. d4 {[%emt 0:00:09]} cxd4 {[%emt 0:00:04]} 4. Nxd4 {[%emt 0:00:05]} Nc6 {[%emt 0:00:08]} 5. Nc3 {[%emt 0:00:12]} d6 {[%emt 0:00:10]} 6. g4 {[%emt 0:01:43]} a6 {[%emt 0:00:25]} 7. Be3 {[%emt 0:01:00]} Nge7 {[%emt 0:00:13]} 8. Nb3 {[%emt 0:08:42]} b5 {[%emt 0:00:57]} 9. g5 {[%emt 0:03:22]} Bb7 {[%emt 0:01:43]} 10. f4 {[%emt 0:08:09]} Rc8 {[%emt 0:05:58]} 11. Qd2 {[%emt 0:02:44]} Na5 {[%emt 0:09:49]} 12. Nxa5 {[%emt 0:14:14]} Qxa5 {[%emt 0:00:09]} 13. Bg2 {[%emt 0:01:14]} Nc6 {[%emt 0:02:27]} 14. h4 {[%emt 0:04:00]} b4 {[%emt 0:04:24]} 15. Ne2 {[%emt 0:01:24]} Be7 {[%emt 0:00:25]} 16. h5 {[%emt 0:01:48]} O-O {[%emt 0:07:55]} 17. h6 {[%emt 0:07:17]} g6 {[%emt 0:00:21]} 18. O-O {[%emt 0:00:47]} Rfd8 {[%emt 0:04:29]} 19. c4 {[%emt 0:05:01]} bxc3 {[%emt 0:04:49]} 20. Nxc3 {[%emt 0:00:25]} Rb8 {[%emt 0:03:53]} 21. a3 {[%emt 0:07:06]} Bf8 {[%emt 0:00:37]} 22. b4 {[%emt 0:00:45]} Qc7 {[%emt 0:00:15]} 23. Rac1 {[%emt 0:01:05]} Qe7 {[%emt 0:04:30]} 24. Nd5 {[%emt 0:09:53]} exd5 {[%emt 0:00:29]} 25. exd5 {[%emt 0:00:03]} Ne5 {[%emt 0:04:09]} 26. fxe5 {[%emt 0:00:02]} dxe5 {[%emt 0:00:11]} 27. Rf6 {[%emt 0:03:09]} Qd7 {[%emt 0:08:15]} 28. Bb6 {[%emt 0:03:34]} Qg4 {[%emt 0:04:22]} 29. Bxd8 {[%emt 0:03:06]} Rxd8 {[%emt 0:00:06]} 30. Rcf1 {[%emt 0:08:38]} Bxd5 {[%emt 0:08:46]} 31. Rxf7 {[%emt 0:00:58]} Bxg2 {[%emt 0:04:33]} 32. Qxg2 {[%emt 0:00:20]} Qd4+ {[%emt 0:00:35]} 33. Qf2 {[%emt 0:00:30]} Qg4+ {[%emt 0:00:10]} 34. Qg2 {[%emt 0:00:11]} Qd4+ {[%emt 0:00:05]} 35. R7f2 {[%emt 0:02:12]} Be7 {[%emt 0:01:36]} 36. Qc6 {[%emt 0:02:58]} Bxg5 {[%emt 0:04:26]} 37. Qe6+ {[%emt 0:00:19]} Kh8 {[%emt 0:00:01]} 38. Qxe5+ {[%emt 0:00:31]} 1-0

[Event "Olomouc Chess Summer IM-B 2024"]
[Site "Olomouc"]
[Date "2024.08.17"]
[Round "9.13"]
[White "Ptacnikova, Lenka"]
[Black "Schernthaner, David"]
[Result "0-1"]
[ECO "A15"]
[WhiteElo "2086"]
[BlackElo "2331"]
[Annotator "ChessBase"]
[PlyCount "74"]
[EventDate "2024.08.10"]
[EventType "tourn"]
[EventCountry "CZE"]
[SourceTitle "playchess.com"]
[Source "ChessBase"]
[SourceQuality "1"]
[TimeControl "40/5400+30:1800+30"]

1. Nf3 {[%emt 0:00:02]} Nf6 {[%emt 0:00:09]} 2. g3 {[%emt 0:00:37]} b6 {[%emt 0:00:34]} 3. Bg2 {[%emt 0:00:29]} Bb7 {[%emt 0:00:06]} 4. O-O {[%emt 0:01:09]} e6 {[%emt 0:00:23]} 5. c4 {[%emt 0:03:36]} Be7 {[%emt 0:01:06]} 6. d3 {[%emt 0:04:52]} d5 {[%emt 0:02:03]} 7. Ne5 {[%emt 0:04:31]} O-O {[%emt 0:04:33]} 8. b3 {[%emt 0:04:57]} Nbd7 {[%emt 0:00:43]} 9. Bb2 {[%emt 0:00:16]} c5 {[%emt 0:09:30]} 10. cxd5 {[%emt 0:06:12]} Nxe5 {[%emt 0:04:41]} 11. Bxe5 {[%emt 0:01:55]} Bxd5 {[%emt 0:00:07]} 12. Bb2 {[%emt 0:12:28]} Bxg2 {[%emt 0:00:40]} 13. Kxg2 {[%emt 0:00:03]} Qd5+ {[%emt 0:00:11]} 14. e4 {[%emt 0:05:52]} Qb7 {[%emt 0:03:41]} 15. Qe2 {[%emt 0:02:47]} Rfd8 {[%emt 0:00:13]} 16. Na3 {[%emt 0:04:04]} Ne8 {[%emt 0:01:52]} 17. Nc4 {[%emt 0:05:08]} Bf6 {[%emt 0:01:31]} 18. Ne5 {[%emt 0:01:05]} Nc7 {[%emt 0:06:01]} 19. f4 {[%emt 0:07:21]} Nb5 {[%emt 0:02:20]} 20. f5 {[%emt 0:01:30]} Qc7 {[%emt 0:19:46]} 21. d4 {[%emt 0:08:45]} Nxd4 {[%emt 0:03:02]} 22. Bxd4 {[%emt 0:00:02]} Bxe5 {[%emt 0:02:06]} 23. Bxe5 {[%emt 0:00:44]} Qxe5 {[%emt 0:00:06]} 24. fxe6 {[%emt 0:03:13]} Qxe6 {[%emt 0:02:02]} 25. Rad1 {[%emt 0:01:51]} g6 {[%emt 0:00:00]} 26. Qc4 {[%emt 0:00:51]} Qe7 {[%emt 0:00:25]} 27. h4 {[%emt 0:01:07]} h5 {[%emt 0:01:22]} 28. a4 {[%emt 0:03:08]} Rxd1 {[%emt 0:01:36]} 29. Rxd1 {[%emt 0:00:01]} Re8 {[%emt 0:00:11]} 30. Kf3 {[%emt 0:02:44]} Qf6+ {[%emt 0:00:07]} 31. Kg2 {[%emt 0:00:33]} Qb2+ {[%emt 0:00:38]} 32. Kh3 {[%emt 0:00:01]} Re7 {[%emt 0:03:14]} 33. a5 {[%emt 0:03:23]} Qe5 {[%emt 0:02:15]} 34. a6 {[%emt 0:02:57]} Kg7 {[%emt 0:08:59]} 35. Rd8 {[%emt 0:01:09]} b5 {[%emt 0:07:05]} 36. Qxb5 {[%emt 0:02:45]} Qxe4 {[%emt 0:00:51]} 37. Qf1 {[%emt 0:02:34]} Qg4+ {[%emt 0:00:29]} 0-1

[Event "Olomouc Chess Summer IM-B 2024"]
[Site "Olomouc"]
[Date "2024.08.17"]
[Round "9.14"]
[White "Ihnat, Marek"]
[Black "Biolek, Richard Jr."]
[Result "0-1"]
[ECO "C97"]
[WhiteElo "2097"]
[BlackElo "2417"]
[Annotator "RC"]
[PlyCount "88"]
[EventDate "2024.08.10"]
[EventType "tourn"]
[EventCountry "CZE"]
[SourceTitle "playchess.com"]
[Source "ChessBase"]
[SourceQuality "1"]
[TimeControl "40/5400+30:1800+30"]

1. e4 {[%emt 0:00:03]} e5 {[%emt 0:00:20]} 2. Nf3 {[%emt 0:00:03]} Nc6 {[%emt 0:00:06]} 3. Bb5 {[%emt 0:00:08]} a6 {[%emt 0:00:03]} 4. Ba4 {[%emt 0:00:03]} Nf6 {[%emt 0:00:08]} 5. O-O {[%emt 0:00:15]} Be7 {[%emt 0:00:10]} 6. Re1 {[%emt 0:00:08]} b5 {[%emt 0:00:03]} 7. Bb3 {[%emt 0:00:03]} O-O {[%emt 0:00:10]} 8. c3 {[%emt 0:00:03]} d6 {[%emt 0:05:15]} 9. h3 {[%emt 0:00:09]} Na5 {[%emt 0:00:20]} 10. Bc2 {[%emt 0:00:07]} c5 {[%emt 0:00:03]} 11. d4 {[%emt 0:00:05]} Qc7 {[%emt 0:00:02]} 12. d5 {[%emt 0:01:29]} Bd7 {[%emt 0:00:43]} 13. b3 {[%emt 0:01:36]} Kh8 {[%emt 0:02:12]} 14. Nbd2 {[%emt 0:04:10]} Ng8 {[%emt 0:04:37]} 15. Qe2 {[%emt 0:04:48]} g6 {[%emt 0:01:33]} 16. Nf1 {[%emt 0:03:44]} c4 {[%emt 0:03:38]} 17. b4 {[%emt 0:00:24]} Nb7 {[%emt 0:00:05]} 18. Ng3 {[%emt 0:09:56]} a5 {[%emt 0:02:30]} 19. Nh2 {[%emt 0:12:38]} Bf6 {[%emt 0:07:05]} 20. Bd2 {[%emt 0:03:11]} Ra6 {[%emt 0:21:20]} 21. a3 {[%emt 0:04:38]} Rfa8 {[%emt 0:07:32]} 22. Rac1 {[%emt 0:01:40]} axb4 {[%emt 0:03:55]} 23. axb4 {[%emt 0:00:30]} Qd8 {[%emt 0:00:00]} 24. Ng4 {[%emt 0:01:56]} Bg5 {[%emt 0:01:16]} 25. Bxg5 {[%emt 0:02:07]} Qxg5 {[%emt 0:00:25]} 26. Ne3 {[%emt 0:03:41]} Ra3 {[%emt 0:05:23]} 27. Qd2 {[%emt 0:02:11]} f6 {[%emt 0:02:13]} 28. Red1 {[%emt 0:01:20]} Nd8 {[%emt 0:01:43]} 29. Qe1 {[%emt 0:01:15]} h5 {[%emt 0:03:49]} 30. Kh1 {[%emt 0:01:06]} h4 {[%emt 0:01:44]} 31. Ne2 {[%emt 0:01:22]} f5 {[%emt 0:06:51]} 32. Ng1 {[%emt 0:05:51]} fxe4 {[%emt 0:09:57]} 33. Bxe4 {[%emt 0:04:34]} Bf5 {[%emt 0:00:35]} 34. Bxf5 {[%emt 0:03:03]} gxf5 {[%emt 0:00:02]} 35. Ra1 {[%emt 0:04:19]} e4 {[%emt 0:02:34]} 36. Rxa3 {[%emt 0:03:50]} Rxa3 {[%emt 0:00:02]} 37. Nc2 {[%emt 0:04:31]} Ra7 {[%emt 0:04:00]} 38. Ra1 {[%emt 0:02:00]} Rg7 {[%emt 0:01:00]} 39. Ne3 {[%emt 0:01:37]} Nf7 {[%emt 0:01:59]} 40. Ra7 {[%emt 0:08:14]} Ne5 {[%emt 0:01:58]} 41. Rxg7 {[%emt 0:31:35]} Kxg7 {[%emt 0:30:06]} 42. Nc2 {[%emt 0:00:00]} Nd3 {[%emt 0:00:00]} 43. Qe2 {[%emt 0:00:00]} Qf4 {[%emt 0:00:00]} 44. f3 {[%emt 0:00:00]} Qg3 {[%emt 0:00:00]} 0-1

[Event "Olomouc Chess Summer IM-B 2024"]
[Site "Olomouc"]
[Date "2024.08.17"]
[Round "9.15"]
[White "Dukic, Zachary"]
[Black "Zavurka, Roman"]
[Result "1/2-1/2"]
[ECO "B11"]
[WhiteElo "2244"]
[BlackElo "2191"]
[Annotator "RC"]
[PlyCount "119"]
[EventDate "2024.08.10"]
[EventType "tourn"]
[EventCountry "CZE"]
[SourceTitle "playchess.com"]
[Source "ChessBase"]
[SourceQuality "1"]
[TimeControl "40/5400+30:1800+30"]

1. e4 {[%emt 0:02:33]} c6 {[%emt 0:00:08]} 2. Nc3 {[%emt 0:00:44]} d5 {[%emt 0:00:11]} 3. Nf3 {[%emt 0:00:05]} Bg4 {[%emt 0:00:11]} 4. h3 {[%emt 0:00:05]} Bxf3 {[%emt 0:00:09]} 5. Qxf3 {[%emt 0:00:06]} e6 {[%emt 0:00:06]} 6. Be2 {[%emt 0:00:05]} Nf6 {[%emt 0:00:19]} 7. O-O {[%emt 0:00:19]} Be7 {[%emt 0:00:30]} 8. d4 {[%emt 0:00:35]} O-O {[%emt 0:01:46]} 9. Bd3 {[%emt 0:15:30]} Nbd7 {[%emt 0:04:27]} 10. e5 {[%emt 0:07:01]} Ne8 {[%emt 0:00:09]} 11. Ne2 {[%emt 0:00:05]} g6 {[%emt 0:03:18]} 12. Bh6 {[%emt 0:03:35]} Ng7 {[%emt 0:04:32]} 13. Qg4 {[%emt 0:04:05]} c5 {[%emt 0:02:49]} 14. c3 {[%emt 0:00:08]} c4 {[%emt 0:04:57]} 15. Bc2 {[%emt 0:00:22]} b5 {[%emt 0:00:19]} 16. h4 {[%emt 0:08:33]} Bxh4 {[%emt 0:06:29]} 17. g3 {[%emt 0:00:08]} Be7 {[%emt 0:00:22]} 18. Kg2 {[%emt 0:00:14]} Re8 {[%emt 0:05:39]} 19. Rh1 {[%emt 0:03:58]} Nf8 {[%emt 0:04:19]} 20. Ng1 {[%emt 0:17:01]} Rb8 {[%emt 0:08:22]} 21. Nf3 {[%emt 0:01:42]} Rb7 {[%emt 0:08:30]} 22. Rh3 {[%emt 0:02:38]} f5 {[%emt 0:05:15]} 23. exf6 {[%emt 0:10:10]} Bxf6 {[%emt 0:00:14]} 24. Rah1 {[%emt 0:01:15]} Nf5 {[%emt 0:08:27]} 25. Bf4 {[%emt 0:03:02]} Rg7 {[%emt 0:01:43]} 26. Ne5 {[%emt 0:07:24]} Qe7 {[%emt 0:07:31]} 27. Qe2 {[%emt 0:00:36]} Bxe5 {[%emt 0:06:00]} 28. Bxe5 {[%emt 0:01:50]} Rf7 {[%emt 0:00:13]} 29. g4 {[%emt 0:00:19]} Nd6 {[%emt 0:01:55]} 30. Qe3 {[%emt 0:00:52]} Rd8 {[%emt 0:01:56]} 31. Rh6 {[%emt 0:01:53]} Ne4 {[%emt 0:01:29]} 32. f3 {[%emt 0:02:31]} Nf6 {[%emt 0:04:05]} 33. g5 {[%emt 0:01:42]} N6d7 {[%emt 0:03:04]} 34. Bxg6 {[%emt 0:00:11]} Nxe5 {[%emt 0:00:23]} 35. Qxe5 {[%emt 0:00:08]} Rg7 {[%emt 0:00:18]} 36. Bxh7+ {[%emt 0:02:42]} Rxh7 {[%emt 0:01:22]} 37. f4 {[%emt 0:00:29]} Qg7 {[%emt 0:01:20]} 38. Qe3 {[%emt 0:00:48]} Rxh6 {[%emt 0:00:39]} 39. Rxh6 {[%emt 0:00:05]} Rd7 {[%emt 0:00:41]} 40. Kg3 {[%emt 0:03:39]} Rf7 {[%emt 0:00:56]} 41. Kg4 {[%emt 0:31:03]} Rf5 {[%emt 0:32:06]} 42. Rxe6 {[%emt 0:00:00]} Rf7 {[%emt 0:00:00]} 43. Re5 {[%emt 0:00:00]} Qh7 {[%emt 0:00:00]} 44. f5 {[%emt 0:00:00]} Qh1 {[%emt 0:00:00]} 45. g6 {[%emt 0:00:00]} Rg7 {[%emt 0:00:00]} 46. Re8 {[%emt 0:00:00]} Qg2+ {[%emt 0:00:00]} 47. Qg3 {[%emt 0:00:00]} Qxb2 {[%emt 0:00:57]} 48. Rxf8+ {[%emt 0:00:00]} Kxf8 {[%emt 0:00:08]} 49. Qb8+ {[%emt 0:00:00]} Ke7 {[%emt 0:00:24]} 50. Qc7+ {[%emt 0:00:00]} Ke8 {[%emt 0:00:31]} 51. Qxg7 {[%emt 0:00:00]} Qg2+ {[%emt 0:01:34]} 52. Kf4 {[%emt 0:00:00]} Qh2+ {[%emt 0:00:45]} 53. Kf3 {[%emt 0:00:00]} Qh3+ {[%emt 0:00:20]} 54. Kf4 {[%emt 0:00:00]} Qh2+ {[%emt 0:00:42]} 55. Kg4 {[%emt 0:00:00]} Qg2+ {[%emt 0:00:05]} 56. Kh4 {[%emt 0:00:00]} Qh2+ {[%emt 0:00:10]} 57. Kg5 {[%emt 0:00:00]} Qg3+ {[%emt 0:00:13]} 58. Kf6 {[%emt 0:00:00]} Qd6+ {[%emt 0:00:10]} 59. Kg5 {[%emt 0:00:00]} Qg3+ {[%emt 0:00:10]} 60. Kf6 {[%emt 0:00:00]} 1/2-1/2